[Event "Early-Titled-Tuesday-Blitz-March-05-2024"]
[Site "Chess.com"]
[Date "2024.03.05"]
[Round "10"]
[White "Azalea95"]
[Black "ChessLebaneseSalah"]
[Result "0-1"]
[WhiteElo "2390"]
[BlackElo "2573"]
[TimeControl "180+1"]
[EndTime "9:57:05 PST"]
[Termination "ChessLebaneseSalah won by resignation"]

1. e4 {[%clk 0:03:00.9]} 1... c5 {[%clk 0:02:57.1]} 2. Nc3 {[%clk 0:02:59.1]}
2... Nc6 {[%clk 0:02:56]} 3. g3 {[%clk 0:02:59.2]} 3... g6 {[%clk 0:02:55.8]} 4.
Bg2 {[%clk 0:02:59.7]} 4... Bg7 {[%clk 0:02:56]} 5. d3 {[%clk 0:03:00.1]} 5...
e6 {[%clk 0:02:56.3]} 6. Be3 {[%clk 0:03:00.2]} 6... d6 {[%clk 0:02:56.5]} 7.
Qd2 {[%clk 0:03:00.1]} 7... Nge7 {[%clk 0:02:53.5]} 8. Nge2 {[%clk 0:02:58]}
8... Nd4 {[%clk 0:02:49.4]} 9. O-O {[%clk 0:02:55.6]} 9... Nec6 {[%clk
0:02:45.5]} 10. Nd1 {[%clk 0:02:54.2]} 10... O-O {[%clk 0:02:38.9]} 11. Nc1
{[%clk 0:02:51.9]} 11... e5 {[%clk 0:02:31.1]} 12. c3 {[%clk 0:02:48.6]} 12...
Ne6 {[%clk 0:02:30.3]} 13. Bh6 {[%clk 0:02:48.8]} 13... b5 {[%clk 0:02:24.8]}
14. Bxg7 {[%clk 0:02:45.2]} 14... Kxg7 {[%clk 0:02:25.3]} 15. Ne2 {[%clk
0:02:44]} 15... f6 {[%clk 0:02:19.7]} 16. Ne3 {[%clk 0:02:42]} 16... Ne7 {[%clk
0:02:16.6]} 17. f4 {[%clk 0:02:41.6]} 17... Bb7 {[%clk 0:02:14.5]} 18. f5 {[%clk
0:01:58.5]} 18... Nc7 {[%clk 0:02:07.4]} 19. fxg6 {[%clk 0:01:52.7]} 19... hxg6
{[%clk 0:02:08.3]} 20. Ng4 {[%clk 0:01:52.7]} 20... Ng8 {[%clk 0:02:03.9]} 21.
d4 {[%clk 0:01:49.9]} 21... cxd4 {[%clk 0:02:00]} 22. cxd4 {[%clk 0:01:49.9]}
22... Ne6 {[%clk 0:01:59.9]} 23. Kh1 {[%clk 0:01:37.3]} 23... f5 {[%clk
0:01:44.4]} 24. Ne3 {[%clk 0:01:23.6]} 24... Bxe4 {[%clk 0:01:35.6]} 25. Bxe4
{[%clk 0:01:22.5]} 25... fxe4 {[%clk 0:01:36.5]} 26. dxe5 {[%clk 0:01:12.2]}
26... dxe5 {[%clk 0:01:35.3]} 27. Qb4 {[%clk 0:00:55.6]} 27... Nd4 {[%clk
0:01:26.4]} 28. Nc3 {[%clk 0:00:52.2]} 28... a5 {[%clk 0:01:21.7]} 29. Qc5
{[%clk 0:00:50]} 29... Qe7 {[%clk 0:01:17]} 30. Qxe7+ {[%clk 0:00:33.4]} 30...
Nxe7 {[%clk 0:01:17.9]} 31. Nxe4 {[%clk 0:00:34]} 31... Nef5 {[%clk 0:01:08.8]}
32. Ng4 {[%clk 0:00:29.3]} 32... Rae8 {[%clk 0:01:02.4]} 33. Kg2 {[%clk
0:00:28.8]} 33... Nc2 {[%clk 0:00:58.9]} 34. Rac1 {[%clk 0:00:18.5]} 34... Nfe3+
{[%clk 0:00:57.1]} 35. Nxe3 {[%clk 0:00:14]} 35... Nxe3+ {[%clk 0:00:56.9]} 36.
Kg1 {[%clk 0:00:13.4]} 36... Rxf1+ {[%clk 0:00:57.2]} 37. Rxf1 {[%clk
0:00:13.2]} 37... Nxf1 {[%clk 0:00:58.1]} 38. Kxf1 {[%clk 0:00:14.1]} 38... Rc8
{[%clk 0:00:58.6]} 0-1

[Event "Early-Titled-Tuesday-Blitz-March-05-2024"]
[Site "Chess.com"]
[Date "2024.03.05"]
[Round "10"]
[White "Chernov_Alexander_A"]
[Black "GoValya"]
[Result "1/2-1/2"]
[WhiteElo "2345"]
[BlackElo "2240"]
[TimeControl "180+1"]
[EndTime "9:57:10 PST"]
[Termination "Game drawn by repetition"]

1. d4 {[%clk 0:03:00.9]} 1... Nf6 {[%clk 0:02:59.3]} 2. Nc3 {[%clk 0:02:59]}
2... g6 {[%clk 0:02:58.9]} 3. e4 {[%clk 0:02:58.4]} 3... d5 {[%clk 0:02:51.9]}
4. e5 {[%clk 0:02:56.3]} 4... Ne4 {[%clk 0:02:38.1]} 5. Nf3 {[%clk 0:02:55.4]}
5... Nxc3 {[%clk 0:02:37.1]} 6. bxc3 {[%clk 0:02:54.9]} 6... Bg4 {[%clk
0:02:35.4]} 7. h3 {[%clk 0:02:53.6]} 7... Bxf3 {[%clk 0:02:35.3]} 8. Qxf3 {[%clk
0:02:54.4]} 8... e6 {[%clk 0:02:35.6]} 9. h4 {[%clk 0:02:51.3]} 9... h5 {[%clk
0:02:34.2]} 10. g4 {[%clk 0:02:48.3]} 10... hxg4 {[%clk 0:02:28.7]} 11. Qxg4
{[%clk 0:02:48.3]} 11... Be7 {[%clk 0:02:20.1]} 12. h5 {[%clk 0:02:47.1]} 12...
gxh5 {[%clk 0:02:06.2]} 13. Rxh5 {[%clk 0:02:45.8]} 13... Rxh5 {[%clk
0:01:55.7]} 14. Qxh5 {[%clk 0:02:45.6]} 14... c5 {[%clk 0:01:45.8]} 15. Qh8+
{[%clk 0:02:28.8]} 15... Kd7 {[%clk 0:01:45.5]} 16. Qg7 {[%clk 0:02:25.9]} 16...
Qf8 {[%clk 0:01:24.6]} 17. Qg3 {[%clk 0:02:14.8]} 17... Nc6 {[%clk 0:01:23.8]}
18. Rb1 {[%clk 0:02:10.5]} 18... Kc7 {[%clk 0:01:15.9]} 19. Qd3 {[%clk
0:02:04.2]} 19... c4 {[%clk 0:01:09.3]} 20. Qf3 {[%clk 0:01:53.9]} 20... Qg7
{[%clk 0:01:04.1]} 21. Bg2 {[%clk 0:01:44.8]} 21... Rg8 {[%clk 0:01:01.1]} 22.
Kf1 {[%clk 0:01:44.5]} 22... Qg6 {[%clk 0:00:38.8]} 23. Be3 {[%clk 0:01:30.8]}
23... Qxc2 {[%clk 0:00:29.8]} 24. Rc1 {[%clk 0:01:30.9]} 24... Qd3+ {[%clk
0:00:28.7]} 25. Kg1 {[%clk 0:01:31]} 25... Qg6 {[%clk 0:00:28.5]} 26. Bf4 {[%clk
0:01:24.7]} 26... Ba3 {[%clk 0:00:24.6]} 27. Re1 {[%clk 0:01:17.2]} 27... Ne7
{[%clk 0:00:24.1]} 28. Qg3 {[%clk 0:01:06.4]} 28... Qf5 {[%clk 0:00:11.5]} 29.
Qe3 {[%clk 0:00:54.7]} 29... Ng6 {[%clk 0:00:10.7]} 30. Bg3 {[%clk 0:00:54.7]}
30... Be7 {[%clk 0:00:10.3]} 31. Qf3 {[%clk 0:00:52.9]} 31... Nh4 {[%clk
0:00:09]} 32. Qxf5 {[%clk 0:00:49]} 32... Nxf5 {[%clk 0:00:09.9]} 33. Bf4 {[%clk
0:00:47.8]} 33... Nh4 {[%clk 0:00:10]} 34. Bg3 {[%clk 0:00:46.8]} 34... Nf5
{[%clk 0:00:10.3]} 35. Kh2 {[%clk 0:00:46.3]} 35... Rh8+ {[%clk 0:00:09.9]} 36.
Kg1 {[%clk 0:00:45.9]} 36... Rg8 {[%clk 0:00:10.4]} 1/2-1/2

[Event "Early-Titled-Tuesday-Blitz-March-05-2024"]
[Site "Chess.com"]
[Date "2024.03.05"]
[Round "10"]
[White "vladgoncharov"]
[Black "GMSrinath"]
[Result "0-1"]
[WhiteElo "2635"]
[BlackElo "2809"]
[TimeControl "180+1"]
[EndTime "9:57:12 PST"]
[Termination "GMSrinath won on time"]

1. d4 {[%clk 0:03:00.9]} 1... Nf6 {[%clk 0:02:57.1]} 2. c4 {[%clk 0:03:00.5]}
2... e6 {[%clk 0:02:57.2]} 3. Nc3 {[%clk 0:03:00]} 3... Bb4 {[%clk 0:02:56.8]}
4. e3 {[%clk 0:02:59.7]} 4... O-O {[%clk 0:02:56.1]} 5. Bd3 {[%clk 0:02:59.4]}
5... b6 {[%clk 0:02:56]} 6. Ne2 {[%clk 0:02:58.8]} 6... Bb7 {[%clk 0:02:56.6]}
7. O-O {[%clk 0:02:57.9]} 7... d5 {[%clk 0:02:56.3]} 8. a3 {[%clk 0:02:44.8]}
8... Bd6 {[%clk 0:02:55.1]} 9. cxd5 {[%clk 0:02:42.2]} 9... exd5 {[%clk
0:02:54.9]} 10. h3 {[%clk 0:02:38.9]} 10... a6 {[%clk 0:02:55.4]} 11. b4 {[%clk
0:02:37.7]} 11... Re8 {[%clk 0:02:55.1]} 12. Bb2 {[%clk 0:02:37]} 12... Nbd7
{[%clk 0:02:55.7]} 13. Qc2 {[%clk 0:02:18.9]} 13... Nf8 {[%clk 0:02:56]} 14. b5
{[%clk 0:02:12.3]} 14... a5 {[%clk 0:02:55.6]} 15. a4 {[%clk 0:02:08.7]} 15...
Ng6 {[%clk 0:02:55.9]} 16. Ba3 {[%clk 0:02:07.6]} 16... Nh4 {[%clk 0:02:56.3]}
17. Bxd6 {[%clk 0:02:05.8]} 17... Qxd6 {[%clk 0:02:57.2]} 18. Ng3 {[%clk
0:01:57.1]} 18... g6 {[%clk 0:02:55.4]} 19. Rfe1 {[%clk 0:01:51.9]} 19... Re7
{[%clk 0:02:55.3]} 20. Qb2 {[%clk 0:01:47.4]} 20... Rae8 {[%clk 0:02:54.8]} 21.
Qa3 {[%clk 0:01:44.9]} 21... Qd7 {[%clk 0:02:54.8]} 22. Rac1 {[%clk 0:01:32.3]}
22... Bc8 {[%clk 0:02:47.1]} 23. Qb3 {[%clk 0:01:25.5]} 23... Nxg2 {[%clk
0:01:50.7]} 24. Kxg2 {[%clk 0:00:49.3]} 24... Qxh3+ {[%clk 0:01:49]} 25. Kg1
{[%clk 0:00:49.5]} 25... Rxe3 {[%clk 0:01:48.1]} 26. Rxe3 {[%clk 0:00:34.8]}
26... Rxe3 {[%clk 0:01:46.3]} 27. Nxd5 {[%clk 0:00:17]} 27... Ng4 {[%clk
0:01:10.5]} 28. Nf6+ {[%clk 0:00:10.2]} 28... Nxf6 {[%clk 0:01:06.1]} 29. fxe3
{[%clk 0:00:09.3]} 29... Qxg3+ {[%clk 0:01:05.5]} 30. Kf1 {[%clk 0:00:09.6]}
30... Ng4 {[%clk 0:01:01]} 31. Qb2 {[%clk 0:00:04.4]} 31... Nxe3+ {[%clk
0:00:49]} 32. Ke2 {[%clk 0:00:03.7]} 32... Qg2+ {[%clk 0:00:47.5]} 0-1

[Event "Early-Titled-Tuesday-Blitz-March-05-2024"]
[Site "Chess.com"]
[Date "2024.03.05"]
[Round "10"]
[White "Mikhail_Golubev"]
[Black "mbchess97"]
[Result "1-0"]
[WhiteElo "2661"]
[BlackElo "2505"]
[TimeControl "180+1"]
[EndTime "9:57:12 PST"]
[Termination "Mikhail_Golubev won by resignation"]

1. e4 {[%clk 0:03:00.9]} 1... c5 {[%clk 0:02:56]} 2. Nf3 {[%clk 0:03:00.3]} 2...
d6 {[%clk 0:02:53]} 3. d4 {[%clk 0:03:00]} 3... cxd4 {[%clk 0:02:52.1]} 4. Nxd4
{[%clk 0:03:00.9]} 4... Nf6 {[%clk 0:02:52.4]} 5. Nc3 {[%clk 0:03:01.6]} 5...
Nc6 {[%clk 0:02:52.7]} 6. Bc4 {[%clk 0:03:01.6]} 6... Qb6 {[%clk 0:02:49.4]} 7.
Ndb5 {[%clk 0:03:00]} 7... a6 {[%clk 0:02:44]} 8. Be3 {[%clk 0:02:59.8]} 8...
Qd8 {[%clk 0:02:43.2]} 9. Nd4 {[%clk 0:02:59.5]} 9... Bd7 {[%clk 0:02:38.4]} 10.
Bb3 {[%clk 0:02:53.1]} 10... e6 {[%clk 0:02:35.9]} 11. f4 {[%clk 0:02:49.3]}
11... Be7 {[%clk 0:02:33.8]} 12. f5 {[%clk 0:02:35.4]} 12... Nxd4 {[%clk
0:02:17]} 13. Qxd4 {[%clk 0:02:28]} 13... exf5 {[%clk 0:02:11.7]} 14. O-O {[%clk
0:02:17.9]} 14... fxe4 {[%clk 0:02:04.7]} 15. Nd5 {[%clk 0:01:51.1]} 15... O-O
{[%clk 0:01:49.8]} 16. Nxe7+ {[%clk 0:01:42.5]} 16... Qxe7 {[%clk 0:01:50.5]}
17. Bg5 {[%clk 0:01:41.8]} 17... Qe5 {[%clk 0:01:46.7]} 18. Qxe5 {[%clk
0:01:37]} 18... dxe5 {[%clk 0:01:46.3]} 19. Bxf6 {[%clk 0:01:37.7]} 19... gxf6
{[%clk 0:01:46.3]} 20. Rxf6 {[%clk 0:01:38.4]} 20... Be6 {[%clk 0:01:01]} 21.
Bxe6 {[%clk 0:01:04.2]} 21... fxe6 {[%clk 0:01:01.9]} 22. Raf1 {[%clk
0:00:46.7]} 22... Rae8 {[%clk 0:00:43.5]} 23. Rxf8+ {[%clk 0:00:43.7]} 23...
Rxf8 {[%clk 0:00:43.3]} 24. Rxf8+ {[%clk 0:00:43.4]} 24... Kxf8 {[%clk
0:00:43.5]} 25. Kf2 {[%clk 0:00:43.6]} 25... Ke7 {[%clk 0:00:32.9]} 26. Ke3
{[%clk 0:00:43.5]} 26... Kd6 {[%clk 0:00:29]} 27. Kxe4 {[%clk 0:00:43.2]} 27...
b5 {[%clk 0:00:29.1]} 28. g4 {[%clk 0:00:39.7]} 28... a5 {[%clk 0:00:29.5]} 29.
h4 {[%clk 0:00:31.9]} 29... a4 {[%clk 0:00:29.8]} 30. a3 {[%clk 0:00:30.3]}
30... h6 {[%clk 0:00:27.8]} 31. g5 {[%clk 0:00:22.5]} 31... hxg5 {[%clk
0:00:27.4]} 32. hxg5 {[%clk 0:00:22.1]} 32... Ke7 {[%clk 0:00:27.1]} 33. Kxe5
{[%clk 0:00:21.9]} 33... Kf7 {[%clk 0:00:27.4]} 34. g6+ {[%clk 0:00:22.3]} 34...
Kxg6 {[%clk 0:00:27.6]} 35. Kxe6 {[%clk 0:00:22.5]} 1-0

[Event "Early-Titled-Tuesday-Blitz-March-05-2024"]
[Site "Chess.com"]
[Date "2024.03.05"]
[Round "10"]
[White "LornerAcosta"]
[Black "Sofiia_Hryzlova"]
[Result "0-1"]
[WhiteElo "2613"]
[BlackElo "2523"]
[TimeControl "180+1"]
[EndTime "9:57:20 PST"]
[Termination "Sofiia_Hryzlova won on time"]

1. Nf3 {[%clk 0:03:00.9]} 1... d5 {[%clk 0:02:53.2]} 2. e3 {[%clk 0:03:00.2]}
2... Nc6 {[%clk 0:02:52.7]} 3. d4 {[%clk 0:03:00]} 3... e6 {[%clk 0:02:48.6]} 4.
c4 {[%clk 0:02:59.8]} 4... dxc4 {[%clk 0:02:48.1]} 5. Bxc4 {[%clk 0:02:59.4]}
5... Nf6 {[%clk 0:02:47.8]} 6. Nc3 {[%clk 0:02:59.2]} 6... a6 {[%clk 0:02:47.5]}
7. O-O {[%clk 0:02:58.4]} 7... Be7 {[%clk 0:02:45.4]} 8. Qe2 {[%clk 0:02:57.8]}
8... O-O {[%clk 0:02:40.7]} 9. Rd1 {[%clk 0:02:25]} 9... b5 {[%clk 0:02:36.2]}
10. Bb3 {[%clk 0:02:22]} 10... Na5 {[%clk 0:02:27.9]} 11. Bc2 {[%clk 0:02:19.2]}
11... Bb7 {[%clk 0:02:27.1]} 12. e4 {[%clk 0:02:12.6]} 12... Qc8 {[%clk
0:02:17.8]} 13. e5 {[%clk 0:02:11.1]} 13... Nd5 {[%clk 0:02:17.8]} 14. Qe4
{[%clk 0:02:07.1]} 14... g6 {[%clk 0:02:13.9]} 15. Qg4 {[%clk 0:01:41.9]} 15...
Nxc3 {[%clk 0:02:11.3]} 16. bxc3 {[%clk 0:01:40.7]} 16... c5 {[%clk 0:02:11.3]}
17. Bd3 {[%clk 0:01:03.6]} 17... cxd4 {[%clk 0:01:57.3]} 18. Nxd4 {[%clk
0:00:51.8]} 18... Qxc3 {[%clk 0:01:45.6]} 19. Be3 {[%clk 0:00:46.8]} 19... Nc4
{[%clk 0:01:25.3]} 20. Rac1 {[%clk 0:00:28.8]} 20... Qb2 {[%clk 0:01:17.3]} 21.
Bxc4 {[%clk 0:00:18.4]} 21... bxc4 {[%clk 0:01:13.7]} 22. h4 {[%clk 0:00:08.6]}
22... Bd5 {[%clk 0:01:09.5]} 23. h5 {[%clk 0:00:08.8]} 23... c3 {[%clk
0:00:59.2]} 24. hxg6 {[%clk 0:00:06.6]} 24... hxg6 {[%clk 0:00:58.9]} 25. Rc2
{[%clk 0:00:05.4]} 25... Qb4 {[%clk 0:00:56.7]} 26. f3 {[%clk 0:00:04.3]} 26...
Rad8 {[%clk 0:00:51.8]} 27. Kf2 {[%clk 0:00:04.4]} 27... Ba8 {[%clk 0:00:45.3]}
28. Rh1 {[%clk 0:00:03.5]} 28... Rxd4 {[%clk 0:00:29.6]} 29. Bxd4 {[%clk
0:00:01.4]} 29... Bc5 {[%clk 0:00:29.6]} 0-1

[Event "Early-Titled-Tuesday-Blitz-March-05-2024"]
[Site "Chess.com"]
[Date "2024.03.05"]
[Round "10"]
[White "HajiyevKanan"]
[Black "chessamical"]
[Result "1-0"]
[WhiteElo "2524"]
[BlackElo "2199"]
[TimeControl "180+1"]
[EndTime "9:57:22 PST"]
[Termination "HajiyevKanan won on time"]

1. d4 {[%clk 0:03:00.9]} 1... Nf6 {[%clk 0:02:59.1]} 2. Nf3 {[%clk 0:03:01.5]}
2... d5 {[%clk 0:02:58.6]} 3. c4 {[%clk 0:03:01.4]} 3... e6 {[%clk 0:02:58.2]}
4. cxd5 {[%clk 0:03:01.7]} 4... exd5 {[%clk 0:02:57.8]} 5. Nc3 {[%clk
0:03:02.6]} 5... c6 {[%clk 0:02:55]} 6. Qc2 {[%clk 0:03:02.8]} 6... Be7 {[%clk
0:02:51.1]} 7. Bf4 {[%clk 0:03:01.4]} 7... O-O {[%clk 0:02:51.1]} 8. e3 {[%clk
0:03:01.4]} 8... Nbd7 {[%clk 0:02:47.4]} 9. Bd3 {[%clk 0:03:01.5]} 9... Re8
{[%clk 0:02:47.5]} 10. O-O {[%clk 0:03:01.5]} 10... Nf8 {[%clk 0:02:47.6]} 11.
h3 {[%clk 0:03:01.7]} 11... Ng6 {[%clk 0:02:46.5]} 12. Bh2 {[%clk 0:03:02.1]}
12... Bd6 {[%clk 0:02:47]} 13. Bxd6 {[%clk 0:03:02.3]} 13... Qxd6 {[%clk
0:02:46.6]} 14. Rab1 {[%clk 0:03:03.2]} 14... a5 {[%clk 0:02:44.6]} 15. Na4
{[%clk 0:03:02.8]} 15... Be6 {[%clk 0:02:41.8]} 16. Nc5 {[%clk 0:03:01.6]} 16...
b6 {[%clk 0:02:18.5]} 17. Nxe6 {[%clk 0:03:00.1]} 17... Rxe6 {[%clk 0:02:18]}
18. Rfc1 {[%clk 0:02:55.9]} 18... Ne4 {[%clk 0:02:15.2]} 19. Bxe4 {[%clk
0:02:52.8]} 19... dxe4 {[%clk 0:02:14]} 20. Nd2 {[%clk 0:02:53.2]} 20... Rae8
{[%clk 0:02:02.4]} 21. Nc4 {[%clk 0:02:43.4]} 21... Qc7 {[%clk 0:02:00.9]} 22.
b4 {[%clk 0:02:44]} 22... axb4 {[%clk 0:01:59]} 23. Rxb4 {[%clk 0:02:44.9]}
23... c5 {[%clk 0:01:53.3]} 24. dxc5 {[%clk 0:02:29.8]} 24... bxc5 {[%clk
0:01:52.2]} 25. Rb5 {[%clk 0:02:21.2]} 25... Rd8 {[%clk 0:01:29.8]} 26. Nd2
{[%clk 0:02:16.8]} 26... c4 {[%clk 0:01:17.5]} 27. Qxc4 {[%clk 0:02:02.8]} 27...
Qd7 {[%clk 0:01:09.3]} 28. Nb3 {[%clk 0:01:49.6]} 28... Ne5 {[%clk 0:01:07.5]}
29. Nc5 {[%clk 0:01:32.8]} 29... Nf3+ {[%clk 0:00:11.2]} 30. gxf3 {[%clk
0:01:09.1]} 30... Rg6+ {[%clk 0:00:09.6]} 31. Kh2 {[%clk 0:00:44.5]} 31... Qd6+
{[%clk 0:00:05.2]} 32. f4 {[%clk 0:00:43.3]} 32... Rh6 {[%clk 0:00:01.6]} 33.
Nxe4 {[%clk 0:00:30.2]} 1-0

[Event "Early-Titled-Tuesday-Blitz-March-05-2024"]
[Site "Chess.com"]
[Date "2024.03.05"]
[Round "10"]
[White "VladimirKramnik"]
[Black "HansOnTwitch"]
[Result "0-1"]
[WhiteElo "2970"]
[BlackElo "3119"]
[TimeControl "180+1"]
[EndTime "9:57:23 PST"]
[Termination "HansOnTwitch won on time"]

1. c4 {[%clk 0:03:00.9]} 1... Nf6 {[%clk 0:02:58.4]} 2. Nc3 {[%clk 0:03:00.7]}
2... e5 {[%clk 0:02:57.5]} 3. Nf3 {[%clk 0:03:00.1]} 3... Nc6 {[%clk 0:02:57.4]}
4. g3 {[%clk 0:03:00.3]} 4... d5 {[%clk 0:02:55.1]} 5. cxd5 {[%clk 0:02:59.9]}
5... Nxd5 {[%clk 0:02:56]} 6. Bg2 {[%clk 0:03:00]} 6... Nf6 {[%clk 0:02:56.5]}
7. O-O {[%clk 0:02:59.6]} 7... h6 {[%clk 0:02:51.7]} 8. d3 {[%clk 0:02:59.5]}
8... Bd6 {[%clk 0:02:48.9]} 9. a3 {[%clk 0:03:00.1]} 9... a5 {[%clk 0:02:48.9]}
10. b3 {[%clk 0:02:59.1]} 10... O-O {[%clk 0:02:48.7]} 11. Bb2 {[%clk
0:02:58.5]} 11... Re8 {[%clk 0:02:45.4]} 12. Nd2 {[%clk 0:02:49.1]} 12... Be6
{[%clk 0:02:42.7]} 13. e3 {[%clk 0:02:42.8]} 13... Qd7 {[%clk 0:02:41.3]} 14.
Nde4 {[%clk 0:02:39.4]} 14... Be7 {[%clk 0:02:37.8]} 15. Nxf6+ {[%clk
0:02:32.9]} 15... Bxf6 {[%clk 0:02:38.1]} 16. Qc2 {[%clk 0:02:10.8]} 16... Rad8
{[%clk 0:02:37.3]} 17. Rfd1 {[%clk 0:02:08.5]} 17... Bh3 {[%clk 0:02:30.9]} 18.
Nd5 {[%clk 0:01:57.8]} 18... Bxg2 {[%clk 0:02:03.1]} 19. Nxf6+ {[%clk
0:01:57.2]} 19... gxf6 {[%clk 0:02:04]} 20. Kxg2 {[%clk 0:01:57.1]} 20... Re6
{[%clk 0:02:04.1]} 21. d4 {[%clk 0:01:37.5]} 21... Rd6 {[%clk 0:02:03.2]} 22.
Rac1 {[%clk 0:01:34.2]} 22... exd4 {[%clk 0:01:41.7]} 23. Bxd4 {[%clk 0:01:32]}
23... Nxd4 {[%clk 0:01:41.8]} 24. Rxd4 {[%clk 0:01:29.5]} 24... Rxd4 {[%clk
0:01:41.8]} 25. exd4 {[%clk 0:01:29.5]} 25... Qd5+ {[%clk 0:01:37.6]} 26. Kg1
{[%clk 0:01:27.6]} 26... c6 {[%clk 0:01:38.1]} 27. Qd2 {[%clk 0:01:16.9]} 27...
Kg7 {[%clk 0:01:36.7]} 28. Qc3 {[%clk 0:00:42.1]} 28... Re8 {[%clk 0:01:22.5]}
29. b4 {[%clk 0:00:41.6]} 29... a4 {[%clk 0:01:19.6]} 30. Qd2 {[%clk 0:00:36.1]}
30... Re4 {[%clk 0:01:12.1]} 31. Rd1 {[%clk 0:00:31.1]} 31... Qb3 {[%clk
0:01:12]} 32. Qc1 {[%clk 0:00:24]} 32... Re2 {[%clk 0:01:07.6]} 33. Rf1 {[%clk
0:00:12.6]} 33... Re4 {[%clk 0:00:56.3]} 34. Qd2 {[%clk 0:00:08.8]} 34... Qxa3
{[%clk 0:00:54.2]} 35. Rb1 {[%clk 0:00:05]} 35... Qf3 {[%clk 0:00:53.3]} 36. Rf1
{[%clk 0:00:01.9]} 36... a3 {[%clk 0:00:52.9]} 37. b5 {[%clk 0:00:01.4]} 37...
cxb5 {[%clk 0:00:49.7]} 38. d5 {[%clk 0:00:01.6]} 38... Re2 {[%clk 0:00:49.8]}
39. Qd4 {[%clk 0:00:01.1]} 39... Qe4 {[%clk 0:00:45.5]} 0-1

[Event "Early-Titled-Tuesday-Blitz-March-05-2024"]
[Site "Chess.com"]
[Date "2024.03.05"]
[Round "10"]
[White "GianmarcoVaR"]
[Black "Muracle"]
[Result "1-0"]
[WhiteElo "2770"]
[BlackElo "2546"]
[TimeControl "180+1"]
[EndTime "9:57:23 PST"]
[Termination "GianmarcoVaR won on time"]

1. e4 {[%clk 0:02:53.4]} 1... c6 {[%clk 0:02:59.2]} 2. d4 {[%clk 0:02:52.7]}
2... d5 {[%clk 0:02:59.5]} 3. e5 {[%clk 0:02:53.1]} 3... Bf5 {[%clk 0:02:55.2]}
4. Nf3 {[%clk 0:02:51.9]} 4... e6 {[%clk 0:02:54.9]} 5. Be2 {[%clk 0:02:51.4]}
5... Nd7 {[%clk 0:02:54]} 6. O-O {[%clk 0:02:51.2]} 6... h6 {[%clk 0:02:53.9]}
7. a4 {[%clk 0:02:51.2]} 7... a5 {[%clk 0:02:52.3]} 8. Nbd2 {[%clk 0:02:47.2]}
8... Ne7 {[%clk 0:02:51.5]} 9. Nb3 {[%clk 0:02:43.6]} 9... Bg6 {[%clk
0:02:51.7]} 10. Bd2 {[%clk 0:02:43.7]} 10... Nf5 {[%clk 0:02:52.6]} 11. Qe1
{[%clk 0:02:43.2]} 11... b6 {[%clk 0:02:50.5]} 12. Rc1 {[%clk 0:02:40.8]} 12...
Be7 {[%clk 0:02:29.9]} 13. c4 {[%clk 0:02:39.8]} 13... O-O {[%clk 0:02:28]} 14.
cxd5 {[%clk 0:02:37.2]} 14... cxd5 {[%clk 0:02:27.6]} 15. h3 {[%clk 0:02:31.6]}
15... Rc8 {[%clk 0:02:03.6]} 16. Rxc8 {[%clk 0:02:18.7]} 16... Qxc8 {[%clk
0:02:04.5]} 17. Qc1 {[%clk 0:02:02.1]} 17... Qb7 {[%clk 0:02:01.2]} 18. Bb5
{[%clk 0:02:02.7]} 18... Rc8 {[%clk 0:02:00.5]} 19. Qd1 {[%clk 0:02:03]} 19...
Nh4 {[%clk 0:01:52.3]} 20. Bc3 {[%clk 0:01:54.9]} 20... Nxf3+ {[%clk 0:01:49.8]}
21. Qxf3 {[%clk 0:01:54.3]} 21... Nf8 {[%clk 0:01:49.1]} 22. Qe2 {[%clk
0:01:36.8]} 22... Bf5 {[%clk 0:01:44.8]} 23. Ba6 {[%clk 0:01:35.5]} 23... Qb8
{[%clk 0:01:42.1]} 24. Bxc8 {[%clk 0:01:35.1]} 24... Qxc8 {[%clk 0:01:43]} 25.
Rc1 {[%clk 0:01:32.2]} 25... Qe8 {[%clk 0:01:42.4]} 26. Qb5 {[%clk 0:01:18.8]}
26... Qxb5 {[%clk 0:01:37.6]} 27. axb5 {[%clk 0:01:19.1]} 27... Bd3 {[%clk
0:01:38.2]} 28. Bxa5 {[%clk 0:01:04.2]} 28... Nd7 {[%clk 0:00:58.1]} 29. Rc7
{[%clk 0:00:44.5]} 29... Bxb5 {[%clk 0:00:51]} 30. Bxb6 {[%clk 0:00:43.3]} 30...
Nxb6 {[%clk 0:00:49.3]} 31. Rxe7 {[%clk 0:00:42.7]} 31... Na4 {[%clk 0:00:43.2]}
32. Nc5 {[%clk 0:00:30.7]} 1-0

[Event "Early-Titled-Tuesday-Blitz-March-05-2024"]
[Site "Chess.com"]
[Date "2024.03.05"]
[Round "10"]
[White "KorolDimitriy75"]
[Black "Viktor_Poddubnyi"]
[Result "0-1"]
[WhiteElo "2429"]
[BlackElo "2291"]
[TimeControl "180+1"]
[EndTime "9:57:24 PST"]
[Termination "Viktor_Poddubnyi won on time"]

1. d4 {[%clk 0:03:00.9]} 1... g6 {[%clk 0:03:00.4]} 2. c4 {[%clk 0:03:01.1]}
2... Bg7 {[%clk 0:02:59.8]} 3. Nf3 {[%clk 0:03:01.6]} 3... c5 {[%clk 0:02:59.9]}
4. d5 {[%clk 0:03:00.6]} 4... f5 {[%clk 0:03:00.1]} 5. Qc2 {[%clk 0:02:59.8]}
5... Nf6 {[%clk 0:02:59.3]} 6. Nc3 {[%clk 0:02:59.8]} 6... O-O {[%clk 0:02:59]}
7. g3 {[%clk 0:02:59.8]} 7... e6 {[%clk 0:02:58.5]} 8. Bg2 {[%clk 0:02:55.8]}
8... exd5 {[%clk 0:02:58.5]} 9. cxd5 {[%clk 0:02:55.7]} 9... d6 {[%clk
0:02:58.5]} 10. O-O {[%clk 0:02:53.1]} 10... h6 {[%clk 0:02:58.3]} 11. Bd2
{[%clk 0:01:30.6]} 11... Na6 {[%clk 0:02:48.2]} 12. a3 {[%clk 0:01:28.9]} 12...
Nc7 {[%clk 0:02:48]} 13. Qd3 {[%clk 0:01:25.4]} 13... a6 {[%clk 0:02:31.5]} 14.
a4 {[%clk 0:01:24.8]} 14... Bd7 {[%clk 0:02:28.8]} 15. a5 {[%clk 0:01:10.3]}
15... Qe7 {[%clk 0:02:08.9]} 16. Rfe1 {[%clk 0:01:07.8]} 16... Ne4 {[%clk
0:02:00.8]} 17. Rad1 {[%clk 0:00:56.2]} 17... Nxd2 {[%clk 0:01:52.9]} 18. Rxd2
{[%clk 0:00:57.1]} 18... Rae8 {[%clk 0:01:48.3]} 19. e4 {[%clk 0:00:49.9]} 19...
Nb5 {[%clk 0:01:22.8]} 20. exf5 {[%clk 0:00:37.3]} 20... Qxe1+ {[%clk
0:01:21.2]} 21. Nxe1 {[%clk 0:00:38.2]} 21... Rxe1+ {[%clk 0:01:21.3]} 22. Bf1
{[%clk 0:00:38.2]} 22... Bxf5 {[%clk 0:01:15.2]} 23. Qc4 {[%clk 0:00:13]} 23...
Nxc3 {[%clk 0:00:58.1]} 24. bxc3 {[%clk 0:00:10.5]} 24... Bh3 {[%clk 0:00:55.1]}
25. Rb2 {[%clk 0:00:07.1]} 25... Rf7 {[%clk 0:00:42.9]} 26. f4 {[%clk
0:00:05.1]} 26... Rxf1+ {[%clk 0:00:42.1]} 27. Qxf1 {[%clk 0:00:04.4]} 27...
Bxf1 {[%clk 0:00:43]} 28. Kxf1 {[%clk 0:00:04.7]} 28... Bxc3 {[%clk 0:00:43.2]}
29. Rb6 {[%clk 0:00:05]} 29... Rd7 {[%clk 0:00:40.4]} 30. Ke2 {[%clk 0:00:04.7]}
30... Bxa5 {[%clk 0:00:40.6]} 31. Rb1 {[%clk 0:00:04.9]} 31... Bb4 {[%clk
0:00:39.1]} 32. Kd3 {[%clk 0:00:05]} 32... Re7 {[%clk 0:00:39.1]} 33. g4 {[%clk
0:00:03.1]} 33... Kf7 {[%clk 0:00:38.5]} 34. Rb2 {[%clk 0:00:02.3]} 34... b5
{[%clk 0:00:38.5]} 0-1